Workbook

Sheet 여유도(정창용)-사업총괄
A2: (4). 업무여유도
A3: ( 참여분야 : 총괄평가자, 정창용)
A4: (여유도 산정 기준일) | D4: 2016-08-01
A5: No. | B5: 용역명 | C5: 발주처 | D5: 총사업금액 (백만원) | E5: 착수일 | F5: 준공일 | G5: 잔여 일수 | H5: 총계약 일수 | I5: 중복금액 (원)
A6: 1 | B6: 대산항 다목적부두 환경영향평가용역 | C6: 대산지방해양수산청 | D6: 293 | E6: 2016-03-07 | F6: 2017-03-09 | G6: =SUM(IF((F6-$D$4)>365,365,F6-$D$4)) -> 220 | H6: =SUM(F6-E6+1) -> 368 | I6: =ROUND((SUM((D6*(G6/H6)/10))),2) -> 17.52
A7: 2 | B7: 진주항공 국가산업단지 조성사업 환경영향평가용역 | C7: 한국토지주택공사 | D7: 424 | E7: 2016-06-17 | F7: 2017-12-16 | G7: 365 | H7: 548 | I7: 28.24
A8: 3 | B8: 사천항공 국가산업단지 조성사업 환경영향평가용역 | C8: 한국토지주택공사 | D8: 424 | E8: 2016-06-17 | F8: 2017-12-16 | G8: 365 | H8: 548 | I8: 28.24
A9: 4 | B9: 밀양나노융합 국가산업단지 조성사업 환경영향평가용역 | C9: 한국토지주택공사 | D9: 546 | E9: 2016-06-17 | F9: 2017-12-16 | G9: 365 | H9: 548 | I9: 36.37
B10: 계 | I10: =SUM(I6:I9) -> 110.37

Sheet 여유도(정기홍)-수질책임
A2: (4). 업무여유도
A3: ( 참여분야 : 수질책임, 정기홍)
A4: (중복도 산정 기준일) | C4: 2016-08-01
A5: No. | B5: 용역명 | C5: 총사업금액 (백만원) | D5: 착수일 | E5: 준공일 | F5: 잔여 일수 | G5: 총계약 일수 | H5: 중복금액 (백만원)
A6: 1 | B6: 여수시 소하천정비종합계획(재수립) 전략환경영향평가 용역 | C6: 376 | D6: 2016-06-28 | E6: 2018-06-27 | F6: =SUM(IF((E6-$C$4)>365,365,E6-$C$4)) -> 365 | G6: =SUM(E6-D6) -> 729 | H6: =ROUNDUP((SUM((C6*(F6/G6)/10))),2) -> 18.83
A7: 2 | B7: 인천00 도시첨단산업단지 영향평가용역 | C7: 545 | D7: 2014-08-11 | E7: 2017-09-18 | F7: =SUM(IF((E7-$C$4)>365,365,E7-$C$4)) -> 365 | G7: =SUM(E7-D7) -> 1134 | H7: =ROUNDUP((SUM((C7*(F7/G7)/10))),2) -> 17.55
A8: 3 | B8: 월곶~판교 복선전철 전략환경영향평가 | C8: 203 | D8: 2016-03-16 | E8: 2017-01-09 | F8: 161 | G8: 299 | H8: =ROUNDUP((SUM((C8*(F8/G8)/10))),2) -> 10.94
A9: 4 | B9: 봉화댐 건설사업 소규모환경영향평가 용역 | C9: 222 | D9: 2016-03-07 | E9: 2016-12-31 | F9: 152 | G9: 299 | H9: =ROUNDUP((SUM((C9*(F9/G9)/10))),2) -> 11.29
B10: 계 | H10: =SUM(H6:H9) -> 58.61
A11: * 평가기준에 의한 대상 용역만 기재
A12: * 소수점 셋째자리에서 반올림

Sheet 여유도(양영환)-대기책임
A2: (4). 업무여유도
A3: ( 참여분야 : 대기관리분야 책임평가자, 양영환)
A4: (여유도 산정 기준일) | D4: 2016-08-01
A5: No. | B5: 용역명 | C5: 발주처 | D5: 총사업금액 (백만원) | E5: 착수일 | F5: 준공일 | G5: 잔여 일수 | H5: 총계약 일수 | I5: 중복금액 (원)
A6: 1 | B6: 용인시 소하천정비종합계획(재수립) 전략환경영향평가 용역 | C6: 용인시 | D6: 353 | E6: 2016-01-12 | F6: 2017-01-10 | G6: =SUM(IF((F6-$D$4)>365,365,F6-$D$4)) -> 162 | H6: =SUM(F6-E6+1) -> 365 | I6: =ROUND((SUM((D6*(G6/H6)/10))),2) -> 15.67
A7: 2 | B7: 대산항 다목적부두 환경영향평가용역 | C7: 대산지방해양수산청 | D7: 293 | E7: 2016-03-07 | F7: 2017-03-09 | G7: 220 | H7: 368 | I7: 17.52
A8: 3 | B8: 진주항공 국가산업단지 조성사업 환경영향평가용역 | C8: 한국토지주택공사 | D8: 424 | E8: 2016-06-17 | F8: 2017-12-16 | G8: 365 | H8: 548 | I8: 28.24
A9: 4 | B9: 사천항공 국가산업단지 조성사업 환경영향평가용역 | C9: 한국토지주택공사 | D9: 424 | E9: 2016-06-17 | F9: 2017-12-16 | G9: 365 | H9: 548 | I9: 28.24
A10: 5 | B10: 밀양나노융합 국가산업단지 조성사업 환경영향평가용역 | C10: 한국토지주택공사 | D10: 546 | E10: 2016-06-17 | F10: 2017-12-16 | G10: 365 | H10: 548 | I10: 36.37
B11: 계 | I11: =SUM(I6:I10) -> 126.04

Sheet 여유도(연규승)-폐기물책임
A2: (4). 업무여유도
A3: ( 참여분야 : 폐기물처리 분야참여평가자 , 연규승)
A4: (중복도 산정 기준일) | D4: 2016-08-01
A5: No. | B5: 용역명 | C5: 발주처 | D5: 총사업금액 (백만원) | E5: 사업기간 | G5: 1년이내 잔여일수 | H5: 총계약기간 | I5: 중복금액 (백만원)
A6: 1 | B6: 거창군 소하천정비 종합계획수립(변경) 전략환경영향평가 용역 | C6: 경상남도 거창군 | D6: 249 | E6: 2015-08-19 | F6: 2016-11-01 | G6: =F6-$D$4+1 -> 93 | H6: =F6-E6+1 -> 441 | I6: =ROUNDUP(D6*G6/H6/10,2) -> 5.26
A7: 2 | B7: 하동군 소하천정비 종합계획수립(재정비) 전략환경영향평가용역 | C7: 경상남도 하동군 | D7: 192 | E7: 2015-11-09 | F7: 2016-11-07 | G7: =F7-$D$4+1 -> 99 | H7: =F7-E7+1 -> 365 | I7: =ROUNDUP(D7*G7/H7/10,2) -> 5.21
B8: 계 | I8: =SUM(I6:I7) -> 10.47
A9: * 평가기준에 의한 대상 용역만 기재
A10: * 소수점 셋째자리에서 반올림

Sheet 여유도(우재균)-소음책임
A2: (4). 업무여유도
A3: ( 참여분야 : 소음진동분야 책임평가자, 우재균)
A4: (여유도 산정 기준일) | D4: 2016-08-01
A5: No. | B5: 용역명 | C5: 발주처 | D5: 총사업금액 (백만원) | E5: 착수일 | F5: 준공일 | G5: 잔여 일수 | H5: 총계약 일수 | I5: 중복금액 (원)
A6: 1 | B6: 금호워터폴리스 제 영향평가용역 | C6: 대구도시공사 | D6: 821 | E6: 2015-05-20 | F6: 2017-05-18 | G6: =SUM(IF((F6-$D$4)>365,365,F6-$D$4)) -> 290 | H6: =SUM(F6-E6+1) -> 730 | I6: =ROUND((SUM((D6*(G6/H6)/10))),2) -> 32.62
A7: 2 | B7: 안동시 소하천정비 종합계획(변경) 전략환경영향평가용역 | C7: 안동시 | D7: 478 | E7: 2015-06-05 | F7: 2016-11-03 | G7: 94 | H7: 518 | I7: 8.67
A8: 3 | B8: 용인시 소하천정비종합계획(재수립) 전략환경영향평가 용역 | C8: 용인시 | D8: 353 | E8: 2016-01-12 | F8: 2017-01-10 | G8: 162 | H8: 365 | I8: 15.67
A9: 4 | B9: 진주항공 국가산업단지 조성사업 환경영향평가용역 | C9: 한국토지주택공사 | D9: 424 | E9: 2016-06-17 | F9: 2017-12-16 | G9: 365 | H9: 548 | I9: 28.24
A10: 5 | B10: 사천항공 국가산업단지 조성사업 환경영향평가용역 | C10: 한국토지주택공사 | D10: 424 | E10: 2016-06-17 | F10: 2017-12-16 | G10: 365 | H10: 548 | I10: 28.24
A11: 6 | B11: 밀양나노융합 국가산업단지 조성사업 환경영향평가용역 | C11: 한국토지주택공사 | D11: 546 | E11: 2016-06-17 | F11: 2017-12-16 | G11: 365 | H11: 548 | I11: 36.37
B12: 계 | I12: =SUM(I6:I11) -> 149.81

Sheet 여유도(남궁형)-자연책임
A2: (4). 업무여유도
A3: ( 참여분야 : 자연책임, 남궁형)
A4: (중복도 산정 기준일) | C4: 2016-08-01
A5: No. | B5: 용역명 | C5: 총사업금액 (백만원) | D5: 착수일 | E5: 준공일 | F5: 잔여 일수 | G5: 총계약 일수 | H5: 중복금액 (백만원)
A6: 1 | B6: 인천00 도시첨단산업단지 영향평가용역 | C6: 545 | D6: 2014-08-11 | E6: 2017-09-18 | F6: =SUM(IF((E6-$C$4)>365,365,E6-$C$4)) -> 365 | G6: =SUM(E6-D6) -> 1134 | H6: =ROUNDUP((SUM((C6*(F6/G6)/10))),2) -> 17.55
A7: 2 | B7: 봉화댐 건설사업 소규모환경영향평가 용역 | C7: 222 | D7: 2016-03-07 | E7: 2016-12-31 | F7: =SUM(IF((E7-$C$4)>365,365,E7-$C$4)) -> 152 | G7: =SUM(E7-D7) -> 299 | H7: =ROUNDUP((SUM((C7*(F7/G7)/10))),2) -> 11.29
B8: 계 | H8: =SUM(H6:H7) -> 28.84
A9: * 평가기준에 의한 대상 용역만 기재
A10: * 소수점 셋째자리에서 반올림

Sheet 여유도(반보선)-교통책임
A2: (4). 업무여유도
A3: ( 참여분야 : 교통분야 책임평가자, 반보선)
A4: (여유도 산정 기준일) | D4: 2016-08-01
A5: No. | B5: 용역명 | C5: 발주처 | D5: 총사업금액 (백만원) | E5: 착수일 | F5: 준공일 | G5: 잔여 일수 | H5: 총계약 일수 | I5: 중복금액 (원)
A6: 1 | B6: 해당사항 없음 | I6: 0
B7: 계 | I7: =SUM(I6:I6) -> 0

Sheet 여유도(이주영)-수질참여
A2: (4). 업무여유도
A3: ( 참여분야 : 수질참여, 이주영)
A4: (중복도 산정 기준일) | C4: 2016-08-01
A5: No. | B5: 용역명 | C5: 총사업금액 (백만원) | D5: 착수일 | E5: 준공일 | F5: 잔여 일수 | G5: 총계약 일수 | H5: 중복금액 (백만원)
A6: 1 | B6: 봉화댐 건설사업 소규모환경영향평가 용역 | C6: 222 | D6: 2016-03-07 | E6: 2016-12-31 | F6: =SUM(IF((E6-$C$4)>365,365,E6-$C$4)) -> 152 | G6: =SUM(E6-D6) -> 299 | H6: =ROUNDUP((SUM((C6*(F6/G6)/10))),2) -> 11.29
B7: 계 | H7: =SUM(H6:H6) -> 11.29
A8: * 평가기준에 의한 대상 용역만 기재
A9: * 소수점 셋째자리에서 반올림

Sheet 여유도(임종형)-대기참여
A2: (4). 업무여유도
A3: ( 참여분야 : 대기참여, 임종형)
A4: (중복도 산정 기준일) | C4: 2016-08-01
A5: No. | B5: 용역명 | C5: 총사업금액 (백만원) | D5: 착수일 | E5: 준공일 | F5: 잔여 일수 | G5: 총계약 일수 | H5: 중복금액 (백만원)
A6: 1 | B6: 여수시 소하천정비종합계획(재수립) 전략환경영향평가 용역 | C6: 376 | D6: 2016-06-28 | E6: 2018-06-27 | F6: =SUM(IF((E6-$C$4)>365,365,E6-$C$4)) -> 365 | G6: =SUM(E6-D6) -> 729 | H6: =ROUNDUP((SUM((C6*(F6/G6)/10))),2) -> 18.83
A7: 2 | B7: 월곶~판교 복선전철 전략환경영향평가 | C7: 203 | D7: 2016-03-16 | E7: 2017-01-09 | F7: =SUM(IF((E7-$C$4)>365,365,E7-$C$4)) -> 161 | G7: =SUM(E7-D7) -> 299 | H7: =ROUNDUP((SUM((C7*(F7/G7)/10))),2) -> 10.94
A8: 3 | B8: 봉화댐 건설사업 소규모환경영향평가 용역 | C8: 222 | D8: 2016-03-07 | E8: 2016-12-31 | F8: =SUM(IF((E8-$C$4)>365,365,E8-$C$4)) -> 152 | G8: =SUM(E8-D8) -> 299 | H8: =ROUNDUP((SUM((C8*(F8/G8)/10))),2) -> 11.29
B9: 계 | H9: =SUM(H6:H8) -> 41.06
A10: * 평가기준에 의한 대상 용역만 기재
A11: * 소수점 셋째자리에서 반올림

Sheet 여유도(이수행)-폐기참여
A2: (4). 업무여유도
A3: ( 참여분야 : 폐기물참여, 이수행)
A4: (중복도 산정 기준일) | C4: 2016-08-01
A5: No. | B5: 용역명 | C5: 총사업금액 (백만원) | D5: 착수일 | E5: 준공일 | F5: 잔여 일수 | G5: 총계약 일수 | H5: 중복금액 (백만원)
A6: 1 | B6: 인천00 도시첨단산업단지 영향평가용역 | C6: 545 | D6: 2014-08-11 | E6: 2017-09-18 | F6: =SUM(IF((E6-$C$4)>365,365,E6-$C$4)) -> 365 | G6: =SUM(E6-D6) -> 1134 | H6: =ROUNDUP((SUM((C6*(F6/G6)/10))),2) -> 17.55
A7: 2 | B7: 봉화댐 건설사업 소규모환경영향평가 용역 | C7: 222 | D7: 2016-03-07 | E7: 2016-12-31 | F7: =SUM(IF((E7-$C$4)>365,365,E7-$C$4)) -> 152 | G7: =SUM(E7-D7) -> 299 | H7: =ROUNDUP((SUM((C7*(F7/G7)/10))),2) -> 11.29
B8: 계 | H8: =SUM(H6:H7) -> 28.84
A9: * 평가기준에 의한 대상 용역만 기재
A10: * 소수점 셋째자리에서 반올림

Sheet 여유도(강진순)-소음참여
A2: (4). 업무여유도
A3: ( 참여분야 : 소음진동분야 참여평가자, 강진순)
A4: (여유도 산정 기준일) | D4: 2016-08-01
A5: No. | B5: 용역명 | C5: 발주처 | D5: 총사업금액 (백만원) | E5: 착수일 | F5: 준공일 | G5: 잔여 일수 | H5: 총계약 일수 | I5: 중복금액 (원)
A6: 1 | B6: 진주항공 국가산업단지 조성사업 환경영향평가용역 | C6: 한국토지주택공사 | D6: 424 | E6: 2016-06-17 | F6: 2017-12-16 | G6: =SUM(IF((F6-$D$4)>365,365,F6-$D$4)) -> 365 | H6: =SUM(F6-E6+1) -> 548 | I6: =ROUND((SUM((D6*(G6/H6)/10))),2) -> 28.24
A7: 2 | B7: 사천항공 국가산업단지 조성사업 환경영향평가용역 | C7: 한국토지주택공사 | D7: 424 | E7: 2016-06-17 | F7: 2017-12-16 | G7: 365 | H7: 548 | I7: 28.24
A8: 3 | B8: 밀양나노융합 국가산업단지 조성사업 환경영향평가용역 | C8: 한국토지주택공사 | D8: 546 | E8: 2016-06-17 | F8: 2017-12-16 | G8: 365 | H8: 548 | I8: 36.37
B9: 계 | I9: =SUM(I6:I8) -> 92.85

Sheet 여유도(김대엽)-자연참여
A2: (4). 업무여유도
A3: ( 참여분야 : 자연환경분야 참여평가자, 김대엽)
A4: (여유도 산정 기준일) | D4: 2016-08-01
A5: No. | B5: 용역명 | C5: 발주처 | D5: 총사업금액 (백만원) | E5: 착수일 | F5: 준공일 | G5: 잔여 일수 | H5: 총계약 일수 | I5: 중복금액 (원)
A6: 1 | B6: 해당사항 없음 | I6: 0
B7: 계 | I7: =SUM(I6:I6) -> 0

Sheet 여유도(정성훈)-교통참여
A2: (4). 업무여유도
A3: ( 참여분야 : 교통분야 참여평가자, 정성훈)
A4: (여유도 산정 기준일) | D4: 2016-08-01
A5: No. | B5: 용역명 | C5: 발주처 | D5: 총사업금액 (백만원) | E5: 착수일 | F5: 준공일 | G5: 잔여 일수 | H5: 총계약 일수 | I5: 중복금액 (원)
A6: 1 | B6: 해당사항 없음 | I6: 0
B7: 계 | I7: =SUM(I6:I6) -> 0
